bitfinex-derivatives/quotes_BTCF0:USTF0_20260314
["timestamp","ask_amount","ask_price","bid_price","bid_amount"]
[1773448189655,0.05469671,70968.0,70948.0,0.05547181]
[1773448189965,0.0014,70967.0,70942.0,0.05547181]
[1773448190365,0.05469671,70972.0,70942.0,0.05547181]
[1773448190366,0.0014,70966.0,70942.0,0.05547181]
[1773448190765,0.042271,70959.0,70942.0,0.05547181]
[1773448190968,0.043671,70959.0,70942.0,0.05547181]
[1773448191163,0.042272,70957.0,70946.0,0.09835197]
[1773448195169,0.042272,70957.0,70946.0,0.05607397]
[1773448197070,0.05417741,70981.0,70948.0,0.05607397]
[1773448197260,0.053473,70980.0,70960.0,0.07348066]
[1773448197572,0.042266,70968.0,70956.0,0.042272]
[1773448197777,0.043666,70968.0,70956.0,0.042272]
[1773448198270,0.042267,70967.0,70956.0,0.042272]
[1773448198664,0.043667,70967.0,70956.0,0.042272]
[1773448199558,0.0014,70967.0,70953.0,0.0014]
[1773448199764,0.0014,70966.0,70953.0,0.0014]
[1773448199969,0.042268,70965.0,70953.0,0.0014]
[1773448200972,0.042268,70965.0,70955.0,0.042273]
[1773448201359,0.054873,70966.0,70953.0,0.0014]
[1773448201565,0.04227,70961.0,70953.0,0.0014]
[1773448201768,0.042269,70963.0,70953.0,0.0014]
[1773448201964,0.054873,70966.0,70953.0,0.0014]
[1773448202165,0.04227,70961.0,70950.0,0.042276]
[1773448202365,0.04227,70961.0,70951.0,0.042276]
[1773448202567,0.042266,70968.0,70957.0,0.042272]
[1773448202875,0.19708618,70974.0,70955.0,0.09834697]
[1773448202876,0.043667,70967.0,70955.0,0.09834697]
[1773448203074,0.0014,70966.0,70955.0,0.09834697]
[1773448203268,0.0014,70965.0,70955.0,0.09834697]
[1773448203469,0.043668,70965.0,70955.0,0.09834697]
[1773448204473,0.042268,70965.0,70955.0,0.09834697]
[1773448204668,0.042267,70967.0,70955.0,0.09834697]
[1773448204975,0.042267,70967.0,70956.0,0.042273]
[1773448206075,0.0014,70972.0,70956.0,0.042273]
[1773448206277,0.19204059,70970.0,70956.0,0.042273]
[1773448206576,0.0014,70971.0,70956.0,0.042273]
[1773448206773,0.0014,70970.0,70956.0,0.042273]
[1773448207167,0.19708618,70974.0,70957.0,0.042272]
[1773448207168,0.042266,70968.0,70957.0,0.042272]
[1773448207572,0.042266,70968.0,70958.0,0.07348066]
[1773448207772,0.053473,70980.0,70959.0,0.05607397]
[1773448208071,0.042262,70975.0,70963.0,0.042268]
[1773448208283,0.0014,70979.0,70963.0,0.042268]
[1773448208284,0.042262,70974.0,70963.0,0.042268]
[1773448208472,0.0014,70973.0,70963.0,0.042268]
[1773448208874,0.0014,70973.0,70964.0,0.042268]
[1773448209076,0.0014,70974.0,70965.0,0.042267]
[1773448209485,0.042261,70976.0,70965.0,0.042267]
[1773448209673,0.043662,70975.0,70965.0,0.042267]
[1773448209980,0.042262,70975.0,70965.0,0.042267]
[1773448210179,0.0014,70974.0,70965.0,0.042267]
[1773448210580,0.0014,70973.0,70965.0,0.042267]
[1773448210879,0.0014,70973.0,70964.0,0.042268]
[1773448211085,0.0014,70972.0,70964.0,0.042268]
[1773448211278,0.24616415,70980.0,70959.0,0.05607397]
[1773448211477,0.0014,70979.0,70964.0,0.042268]
[1773448211673,0.042261,70976.0,70965.0,0.042267]
[1773448211879,0.043662,70975.0,70959.0,0.05607397]
[1773448212274,0.042262,70975.0,70959.0,0.05607397]
[1773448212577,0.0014,70974.0,70959.0,0.05607397]
[1773448212778,0.0014,70973.0,70959.0,0.05607397]
[1773448212973,1.5e-07,70980.0,70973.0,0.042263]
[1773448213180,0.042257,70982.0,70971.0,0.042264]
[1773448213378,0.0014,70980.0,70972.0,0.042263]
[1773448213885,0.0014,70980.0,70973.0,0.042263]
[1773448214074,0.0014,70980.0,70971.0,0.042263]
[1773448215677,0.0014,70980.0,70972.0,0.042263]
[1773448216580,0.0014,70980.0,70973.0,0.042262]
[1773448216779,0.0014,70980.0,70970.0,0.07348066]
[1773448216980,0.043659,70980.0,70970.0,0.11574466]
[1773448217180,0.0014,70980.0,70970.0,0.11574466]
[1773448217383,0.043657,70982.0,70971.0,0.042264]
[1773448217680,0.043657,70982.0,70972.0,0.042263]
[1773448217986,0.0014,70982.0,70972.0,0.042263]
[1773448219674,0.0014,70982.0,70973.0,0.042262]
[1773448220881,0.0014,70982.0,70970.0,0.07348066]
[1773448220882,0.043658,70982.0,70972.0,0.042263]
[1773448222579,0.043658,70982.0,70956.0,0.05924406]
[1773448222580,0.05664805,70981.0,70956.0,0.05924406]
[1773448222777,0.042262,70975.0,70963.0,0.042269]
[1773448222974,0.042262,70975.0,70964.0,0.042268]
[1773448223304,0.0014,70974.0,70956.0,0.06064406]
[1773448223591,0.0014,70974.0,70957.0,0.31721024]
[1773448223888,0.0014,70974.0,70962.0,0.042269]
[1773448224284,0.0014,70974.0,70963.0,0.042268]
[1773448226085,0.0014,70974.0,70944.0,0.16761011]
[1773448226086,0.05734364,70974.0,70947.0,0.05924406]
[1773448226290,0.05734364,70974.0,70938.0,0.00437]
[1773448226291,0.042264,70971.0,70959.0,0.042271]
[1773448226484,0.042264,70972.0,70959.0,0.042271]
[1773448226687,0.05734364,70974.0,70942.0,0.16761011]
[1773448226688,0.05594364,70969.0,70942.0,0.05924406]
[1773448226891,0.07348066,70970.0,70948.0,0.042277]
[1773448226892,0.04227,70961.0,70948.0,0.042277]
[1773448227082,0.04367,70961.0,70948.0,0.042277]
[1773448228091,0.042271,70960.0,70946.0,0.042279]
[1773448228289,0.042271,70960.0,70944.0,0.0014]
[1773448228290,0.042271,70960.0,70947.0,0.042278]
[1773448229088,0.05594364,70959.0,70923.0,0.16761011]
[1773448229290,0.05594364,70932.0,70896.0,0.05597406]
[1773448229599,0.042294,70921.0,70903.0,0.035584]
[1773448229781,0.043695,70920.0,70901.0,0.10155006]
[1773448229981,0.042299,70912.0,70901.0,0.05924406]
[1773448230194,0.0014,70913.0,70910.0,1e-08]
[1773448230385,0.0014,70912.0,70898.0,0.05924406]
[1773448230585,0.0014,70912.0,70901.0,0.042306]
[1773448230892,0.0014,70912.0,70899.0,0.10155106]
[1773448231395,0.0014,70912.0,70900.0,0.05924406]
[1773448233688,0.0014,70912.0,70901.0,0.042306]
[1773448233887,0.0014,70912.0,70899.0,0.042307]
[1773448234088,0.0014,70912.0,70900.0,0.05924406]
[1773448238998,0.19278093,70927.0,70908.0,0.042301]
[1773448239302,0.07862635,70926.0,70909.0,0.05924406]
[1773448240004,0.042295,70919.0,70909.0,0.05924406]
[1773448240200,0.0014,70918.0,70909.0,0.05924406]
[1773448240701,0.0014,70918.0,70905.0,0.042303]
[1773448241705,0.043696,70918.0,70905.0,0.042303]
[1773448242100,0.043696,70918.0,70904.0,0.043703]
[1773448242301,0.043696,70918.0,70906.0,0.05924406]
[1773448247202,0.0014,70922.0,70911.0,0.042299]
[1773448247507,0.0014,70923.0,70912.0,0.05644233]
[1773448247699,0.043693,70923.0,70912.0,0.05644233]
[1773448248095,0.043693,70923.0,70900.0,0.07338084]
[1773448248096,0.05750792,70923.0,70907.0,0.042302]
[1773448248311,0.09980192,70921.0,70908.0,0.042301]
[1773448248498,0.042295,70920.0,70908.0,0.042301]
[1773448250906,0.10120192,70921.0,70908.0,0.042301]
[1773448251710,0.10120192,70921.0,70908.0,0.03983323]
[1773448252705,0.043694,70921.0,70908.0,0.03983323]
[1773448253105,0.042295,70920.0,70908.0,0.03983323]
[1773448256397,0.0014,70921.0,70905.0,0.0581399]
[1773448257011,0.0014,70921.0,70909.0,0.042301]
[1773448257012,0.043694,70921.0,70909.0,0.042301]
[1773448257213,0.042295,70920.0,70909.0,0.042301]
[1773448258207,0.042295,70919.0,70905.0,0.0567399]
[1773448258412,0.042295,70919.0,70906.0,0.0014]
[1773448258721,0.043694,70921.0,70908.0,0.042301]
[1773448260212,0.043694,70921.0,70909.0,0.042301]
[1773448269320,0.043694,70921.0,70910.0,0.0423]
[1773448271620,0.043694,70921.0,70909.0,0.0423]
[1773448272928,0.043694,70921.0,70910.0,0.0423]
[1773448274924,0.0014,70921.0,70910.0,0.0423]
[1773448275125,0.0014,70921.0,70906.0,0.0581399]
[1773448275424,0.042292,70924.0,70906.0,0.0581399]
[1773448275626,0.043693,70923.0,70910.0,0.0423]
[1773448275838,0.0014,70922.0,70910.0,0.0423]
[1773448277626,0.42197379,70933.0,70910.0,0.0423]
[1773448277627,0.042283,70940.0,70926.0,0.04229]
[1773448277833,0.0014,70945.0,70926.0,0.04229]
[1773448278125,0.06277551,70945.0,70926.0,0.04229]
[1773448278522,0.00399,70942.0,70926.0,0.04229]
[1773448278924,0.042283,70939.0,70926.0,0.04229]
[1773448285133,0.0014,70945.0,70928.0,0.042289]
[1773448285434,0.05715359,70944.0,70928.0,0.042289]
[1773448285935,0.042282,70942.0,70928.0,0.042289]
[1773448286129,0.043682,70941.0,70928.0,0.042289]
[1773448287035,0.042282,70941.0,70928.0,0.042289]
[1773448287338,0.043682,70941.0,70928.0,0.042289]
[1773448287532,0.042282,70941.0,70928.0,0.042289]
[1773448287739,0.043682,70941.0,70928.0,0.042289]
[1773448288332,0.042283,70940.0,70928.0,0.042289]
[1773448288528,0.05715359,70939.0,70925.0,0.0014]
[1773448288733,0.042285,70936.0,70925.0,0.0014]
[1773448290037,0.042284,70938.0,70925.0,0.043691]
[1773448290438,0.042284,70938.0,70926.0,0.042291]
[1773448291641,0.042283,70940.0,70925.0,0.0014]
[1773448291838,0.0014,70941.0,70929.0,0.042289]
[1773448292231,0.05715359,70943.0,70925.0,0.0014]
[1773448292430,0.0014,70943.0,70933.0,0.042286]
[1773448292929,0.0014,70943.0,70930.0,0.07341417]
[1773448292930,0.042281,70943.0,70931.0,0.042287]
[1773448293341,0.0014,70954.0,70937.0,0.042284]
[1773448293645,0.042278,70947.0,70936.0,0.042284]
[1773448293845,0.05715359,70951.0,70936.0,0.0014]
[1773448293846,0.042279,70946.0,70936.0,0.0014]
[1773448294341,0.05715359,70978.0,70939.0,0.06029682]
[1773448294540,0.05715359,70968.0,70940.0,0.07341417]
[1773448294739,0.05715359,70960.0,70948.0,0.042277]
[1773448295038,0.05715359,70960.0,70949.0,0.0014]
[1773448295448,0.05715359,70960.0,70948.0,0.042277]
[1773448295746,0.05715359,70960.0,70949.0,0.0014]
[1773448296344,0.0014,70967.0,70949.0,0.0014]
[1773448296345,0.05715359,70957.0,70949.0,0.0014]
[1773448297146,0.05715359,70957.0,70947.0,0.042278]
[1773448297447,0.05715359,70957.0,70947.0,0.043678]
[1773448299344,0.05715359,70957.0,70948.0,0.042277]
[1773448304657,0.05715359,70956.0,70924.0,0.06117191]
[1773448304856,0.05715359,70941.0,70930.0,0.042288]
[1773448306062,0.05715359,70941.0,70930.0,0.043688]
[1773448306460,0.05715359,70941.0,70930.0,0.042288]
[1773448306762,0.05715359,70941.0,70931.0,0.042287]
[1773448307471,0.05715359,70941.0,70920.0,0.07341417]
[1773448307767,0.05715359,70941.0,70921.0,0.0014]
[1773448308958,0.05715359,70941.0,70933.0,0.042287]
[1773448309558,0.05715359,70941.0,70929.0,0.0014]
[1773448309961,0.05715359,70941.0,70933.0,0.042287]
[1773448311468,0.05715359,70941.0,70934.0,0.042286]
[1773448312763,0.0577912,70945.0,70934.0,0.042286]
[1773448313471,0.07341417,70944.0,70925.0,0.003]
[1773448313674,0.0563912,70934.0,70906.0,0.0014]
[1773448313875,0.0563912,70925.0,70907.0,0.0014]
[1773448314173,0.0563912,70925.0,70900.0,0.07341417]
[1773448314174,0.0986842,70923.0,70908.0,0.0014]
[1773448314365,0.0986842,70923.0,70912.0,0.042299]
[1773448314366,0.0563912,70923.0,70912.0,0.042299]
[1773448314561,0.0563912,70922.0,70910.0,0.0423]
[1773448314967,0.0563912,70922.0,70912.0,0.042299]
[1773448315167,0.0563912,70922.0,70913.0,0.042298]
[1773448316166,0.0563912,70922.0,70914.0,0.042297]
[1773448317068,0.05392532,70922.0,70914.0,0.042297]
[1773448317768,0.05392532,70922.0,70915.0,0.042297]
[1773448317970,0.05392532,70922.0,70908.0,0.0014]
[1773448318167,0.0014,70924.0,70908.0,0.0014]
[1773448318569,0.0014,70924.0,70916.0,0.042296]
[1773448319066,0.0563912,70926.0,70908.0,0.0014]
[1773448320076,0.0563912,70926.0,70916.0,0.042296]
[1773448320775,0.0577912,70937.0,70916.0,0.0014]
[1773448320975,0.0577912,70937.0,70910.0,0.07341417]
[1773448320976,0.0563912,70925.0,70910.0,0.0014]
[1773448321171,0.0563912,70925.0,70915.0,0.0169415]
[1773448321372,0.0593912,70925.0,70915.0,0.0169415]
[1773448322071,0.0593912,70925.0,70913.0,0.043698]
[1773448322371,0.0563912,70923.0,70911.0,0.042299]
[1773448323179,0.0563912,70923.0,70912.0,0.042299]
[1773448323678,0.0563912,70923.0,70913.0,0.042298]
[1773448324274,0.0563912,70923.0,70917.0,0.042296]
[1773448325877,0.0014,70924.0,70917.0,0.042296]
[1773448326079,0.0014,70924.0,70910.0,0.07481417]
[1773448326384,0.0577912,70927.0,70910.0,0.07481417]
[1773448327079,0.0577912,70927.0,70917.0,0.042296]
[1773448328691,0.0014,70927.0,70917.0,0.042296]
[1773448328894,0.042289,70929.0,70917.0,0.042296]
[1773448329092,0.043689,70929.0,70917.0,0.042296]
[1773448329586,0.04229,70928.0,70917.0,0.042296]
[1773448332686,0.0563912,70927.0,70893.0,0.0014]
[1773448332890,0.0563912,70901.0,70887.0,0.042314]
[1773448333184,0.0563912,70905.0,70884.0,0.05820852]
[1773448333591,0.0014,70906.0,70894.0,0.042309]
[1773448333777,0.042304,70905.0,70893.0,0.0014]
[1773448333984,0.0563912,70904.0,70893.0,0.0014]
[1773448336489,0.0563912,70904.0,70893.0,0.04371]
[1773448339684,0.0014,70906.0,70893.0,0.04371]
[1773448339885,0.0014,70906.0,70894.0,0.042309]
[1773448343585,0.043703,70906.0,70894.0,0.042309]
[1773448343993,0.042303,70906.0,70894.0,0.042309]
[1773448345892,0.21215306,70905.0,70894.0,0.042309]
[1773448346197,0.21215306,70904.0,70894.0,0.042309]
[1773448346399,0.21215306,70903.0,70894.0,0.042309]
[1773448346696,0.21215306,70902.0,70894.0,0.042309]
[1773448346895,0.21215306,70901.0,70894.0,0.042309]
[1773448347104,0.21215306,70900.0,70894.0,0.042309]
[1773448347292,0.21215306,70899.0,70894.0,0.042309]
[1773448347493,0.21215306,70898.0,70894.0,0.042309]
[1773448347690,0.21215306,70897.0,70894.0,0.042309]
[1773448347893,6e-08,70896.0,70894.0,0.042309]
[1773448348087,0.042303,70906.0,70894.0,0.042309]
[1773448348598,0.19259478,70908.0,70893.0,0.0014]
[1773448348599,0.05867864,70904.0,70893.0,0.0014]
[1773448349897,0.0014,70906.0,70883.0,0.00325719]
[1773448349898,0.07349677,70903.0,70883.0,0.00325719]
[1773448350101,0.05867864,70895.0,70884.0,0.042315]
[1773448350801,0.05867864,70895.0,70884.0,0.045385]
[1773448350998,0.05867864,70895.0,70884.0,0.00307]
[1773448351395,0.042312,70891.0,70884.0,0.00307]
[1773448351705,0.042312,70891.0,70883.0,0.00016719]
[1773448351905,0.05867864,70893.0,70883.0,0.00016719]
[1773448352104,0.05867864,70893.0,70883.0,0.04248319]
[1773448353102,0.0014,70898.0,70883.0,0.00016719]
[1773448353103,0.042308,70898.0,70883.0,0.00016719]
[1773448353303,0.042303,70906.0,70889.0,0.05989253]
[1773448353502,0.0014,70907.0,70895.0,0.042309]
[1773448353503,0.042302,70907.0,70895.0,0.042309]
[1773448354104,0.19363763,70933.0,70898.0,0.05989253]
[1773448354313,0.19363763,70933.0,70913.0,0.042298]
[1773448354314,0.04229,70928.0,70913.0,0.042298]
[1773448354498,0.04229,70928.0,70914.0,0.0014]
[1773448354899,0.042291,70927.0,70914.0,0.0014]
[1773448355411,0.042291,70925.0,70914.0,0.0014]
[1773448357098,0.042292,70924.0,70914.0,0.0014]
[1773448357299,0.05867864,70923.0,70915.0,0.0014]
[1773448361011,0.042291,70926.0,70915.0,0.0014]
[1773448361907,0.05867864,70938.0,70916.0,0.05989253]
[1773448362116,0.042286,70934.0,70920.0,0.042294]
[1773448364016,0.10096464,70934.0,70920.0,0.042294]
[1773448364918,0.10196464,70934.0,70920.0,0.042294]
[1773448365615,0.10096464,70934.0,70920.0,0.042294]
[1773448366417,0.10096464,70934.0,70915.0,0.0014]
[1773448366418,0.10096464,70934.0,70921.0,0.042293]
[1773448366714,0.10096464,70934.0,70922.0,0.0014]
[1773448369414,0.06221329,70933.0,70922.0,0.0014]
[1773448371113,0.06221329,70933.0,70922.0,0.043693]
[1773448373723,0.06221329,70933.0,70923.0,0.0014]
[1773448373919,0.10450029,70933.0,70923.0,0.0014]
[1773448374716,0.042286,70935.0,70923.0,0.0014]
[1773448375816,0.10744875,70935.0,70923.0,0.0014]
[1773448376421,0.042286,70934.0,70923.0,0.0014]
[1773448376819,0.042286,70934.0,70923.0,0.043692]
[1773448377434,0.06516275,70933.0,70923.0,0.043692]
[1773448377632,0.06516275,70933.0,70923.0,0.0014]
[1773448382538,0.06516275,70932.0,70915.0,0.042297]
[1773448382738,0.06516275,70927.0,70916.0,0.043696]
[1773448382939,0.06516275,70927.0,70919.0,0.042295]
[1773448383842,0.06516275,70927.0,70918.0,0.0014]
[1773448383843,0.06516275,70936.0,70918.0,0.0014]
[1773448384134,0.19298266,70939.0,70918.0,0.06249575]
[1773448384343,0.06868275,70943.0,70929.0,0.042289]
[1773448384933,0.07008275,70943.0,70929.0,0.042289]
[1773448385140,0.06656275,70943.0,70929.0,0.042289]
[1773448385442,0.042283,70940.0,70928.0,0.0014]
[1773448386033,0.042283,70940.0,70928.0,0.043689]
[1773448386239,0.06656275,70943.0,70928.0,0.0014]
[1773448386538,0.042282,70942.0,70929.0,0.042289]
[1773448387038,0.042282,70941.0,70929.0,0.042289]
[1773448387239,0.10744475,70941.0,70929.0,0.042289]
[1773448393943,0.10744475,70941.0,70930.0,0.042288]
[1773448394644,0.0014,70944.0,70930.0,0.07342632]
[1773448394845,0.04368,70944.0,70932.0,0.042287]
[1773448395238,0.04228,70944.0,70933.0,0.042286]
[1773448395839,0.06516275,70943.0,70931.0,0.042287]
[1773448396337,0.10744375,70943.0,70931.0,0.042287]
[1773448402038,0.17907285,70947.0,70918.0,0.00369]
[1773448402039,0.06668047,70936.0,70918.0,0.00369]
[1773448402243,0.06668047,70940.0,70919.0,0.0014]
[1773448402438,0.06668047,70935.0,70919.0,0.0014]
[1773448404055,0.06668047,70935.0,70923.0,0.042292]
[1773448406055,0.10896647,70935.0,70923.0,0.042292]
[1773448406256,0.06668047,70934.0,70923.0,0.042292]
[1773448407844,0.10896747,70934.0,70911.0,0.06289832]
[1773448408050,0.06668047,70934.0,70923.0,0.042292]
[1773448408249,0.06668047,70934.0,70923.0,0.043692]
[1773448410751,0.06668047,70934.0,70923.0,0.042292]
[1773448411656,0.06668047,70934.0,70924.0,0.0014]
[1773448413263,0.042284,70937.0,70924.0,0.0014]
[1773448413757,0.06668047,70943.0,70933.0,0.042287]
[1773448414657,0.042281,70943.0,70931.0,0.042288]
[1773448414959,0.06668047,70942.0,70931.0,0.043688]
[1773448423172,0.06668047,70942.0,70931.0,0.0014]
[1773448423974,0.06668047,70943.0,70924.0,0.00317]
[1773448424170,0.042284,70937.0,70925.0,0.043691]
[1773448424477,0.06668047,70936.0,70925.0,0.043691]
[1773448424674,0.042284,70937.0,70926.0,0.04229]
[1773448424876,0.06668047,70938.0,70927.0,0.04229]
[1773448427480,0.10896447,70938.0,70927.0,0.04229]
[1773448428981,0.10896447,70938.0,70926.0,0.04229]
[1773448434181,0.042284,70937.0,70926.0,0.04229]
[1773448435287,0.06368191,70935.0,70925.0,0.0014]
[1773448436078,0.06368191,70935.0,70925.0,0.043691]
[1773448440191,0.042285,70937.0,70925.0,0.043691]
[1773448441588,0.045465,70937.0,70925.0,0.043691]
[1773448442693,0.042285,70937.0,70925.0,0.043691]
[1773448444596,0.042285,70937.0,70926.0,0.042291]
[1773448448101,0.042285,70936.0,70926.0,0.042291]
[1773448457495,0.042288,70931.0,70925.0,0.0014]
[1773448457700,0.06368191,70927.0,70915.0,0.0014]
[1773448457899,0.06368191,70927.0,70916.0,0.0014]
[1773448458103,0.06368191,70927.0,70919.0,0.042295]
[1773448459497,0.0014,70934.0,70918.0,0.0014]
[1773448459701,0.0014,70934.0,70920.0,0.07344114]
[1773448459903,0.043686,70934.0,70923.0,0.042292]
[1773448461205,0.043686,70934.0,70924.0,0.0014]
[1773448462095,0.0014,70934.0,70924.0,0.0014]
[1773448462506,0.045476,70935.0,70924.0,0.0014]
[1773448462810,0.042286,70934.0,70924.0,0.0014]
[1773448465010,0.042287,70933.0,70924.0,0.0014]
[1773448465602,0.042287,70932.0,70924.0,0.0014]
[1773448468910,0.05653066,70930.0,70919.0,0.042295]
[1773448469114,0.05653066,70930.0,70925.0,0.0014]
[1773448469817,0.042288,70931.0,70925.0,0.0014]
[1773448471711,0.042288,70931.0,70920.0,0.042294]
[1773448471712,0.042288,70931.0,70924.0,0.0014]
[1773448472213,0.042287,70933.0,70924.0,0.0014]
[1773448472709,0.042286,70935.0,70924.0,0.0014]
[1773448473310,0.05653066,70938.0,70924.0,0.0014]
[1773448473511,0.05653066,70938.0,70928.0,0.042289]
[1773448475208,0.042283,70939.0,70928.0,0.042289]
[1773448475404,0.042283,70940.0,70929.0,0.042289]
[1773448475617,0.042283,70939.0,70927.0,0.04229]
[1773448477415,0.042283,70939.0,70928.0,0.042289]
[1773448479221,0.045553,70939.0,70928.0,0.042289]
[1773448480318,0.042283,70939.0,70928.0,0.042289]
[1773448480519,0.05653066,70941.0,70930.0,0.042288]
[1773448480910,0.05653066,70941.0,70930.0,0.043688]
[1773448481719,0.00327,70940.0,70930.0,0.043688]
[1773448482417,0.00327,70940.0,70930.0,0.07483311]
[1773448482920,0.042281,70943.0,70932.0,0.042287]
[1773448484420,0.00327,70941.0,70932.0,0.042287]
[1773448485516,0.042281,70943.0,70932.0,0.042287]
[1773448486714,0.00327,70942.0,70932.0,0.042287]
[1773448487918,0.04228,70945.0,70933.0,0.042286]
[1773448488428,0.05832416,70959.0,70950.0,0.042276]
[1773448488620,0.042273,70956.0,70944.0,0.03700681]
[1773448488921,0.042274,70955.0,70942.0,0.043681]
[1773448489422,0.05832416,70959.0,70942.0,0.043681]
[1773448489423,0.042274,70954.0,70942.0,0.043681]
[1773448490324,0.042275,70953.0,70942.0,0.043681]
[1773448492819,0.042275,70953.0,70942.0,0.0014]
[1773448494422,0.042275,70953.0,70942.0,0.043681]
[1773448495023,0.042274,70955.0,70943.0,0.04228]
[1773448495219,0.05832416,70956.0,70942.0,0.0014]
[1773448495424,0.042275,70953.0,70942.0,0.0014]
[1773448497835,0.042275,70953.0,70942.0,0.043681]
[1773448498534,0.05832416,70956.0,70942.0,0.0014]
[1773448499032,0.042275,70953.0,70942.0,0.043681]
[1773448502237,0.042275,70953.0,70942.0,0.0014]
[1773448504938,0.042275,70952.0,70942.0,0.0014]
[1773448507337,1e-06,70960.0,70948.0,0.05633606]
[1773448507534,0.05588184,70960.0,70950.0,0.042276]
[1773448507734,0.05588184,70960.0,70951.0,0.043675]
[1773448507936,0.05588084,70960.0,70952.0,0.0014]
[1773448508539,0.05588084,70960.0,70952.0,0.043675]
[1773448512443,0.05588084,70960.0,70950.0,0.042276]
[1773448512644,0.05588084,70960.0,70952.0,0.042275]
[1773448517347,0.05588084,70959.0,70940.0,0.00113558]
[1773448517643,0.09815584,70953.0,70934.0,0.05773606]
[1773448517942,0.05588084,70951.0,70939.0,0.042282]
[1773448518143,0.09815684,70951.0,70939.0,0.042282]
[1773448519552,0.05588084,70949.0,70939.0,0.042282]
[1773448519850,0.05588084,70949.0,70935.0,0.0014]
[1773448522043,0.05588084,70949.0,70938.0,0.042284]
[1773448529364,0.042277,70950.0,70939.0,0.042283]
[1773448529555,0.00504,70955.0,70935.0,0.0014]
[1773448529756,0.042274,70954.0,70935.0,0.05431844]
[1773448530160,0.045914,70955.0,70935.0,0.05431844]
[1773448530563,0.09674905,70955.0,70935.0,0.05431844]
[1773448530764,0.09674905,70954.0,70941.0,0.042281]
[1773448531072,0.09674905,70954.0,70942.0,0.0014]
[1773448531268,0.09674905,70954.0,70935.0,0.05291844]
[1773448531269,0.09674905,70954.0,70943.0,0.0014]
[1773448531465,0.09674905,70954.0,70944.0,0.0014]
[1773448535775,0.042273,70956.0,70944.0,0.04368]
[1773448536470,0.042273,70956.0,70945.0,0.042279]
[1773448542174,0.045633,70956.0,70945.0,0.042279]
[1773448543072,0.47411937,70963.0,70944.0,0.0014]
[1773448543277,0.0014,70962.0,70951.0,0.042275]
[1773448543479,0.043669,70962.0,70949.0,0.042277]
[1773448543774,0.042269,70962.0,70950.0,0.0014]
[1773448544077,0.21123274,70963.0,70950.0,0.0014]
[1773448544269,0.042269,70962.0,70951.0,0.042275]
[1773448544469,0.00336,70956.0,70951.0,0.042275]
[1773448544671,0.00336,70956.0,70950.0,0.0014]
[1773448545169,0.00336,70956.0,70951.0,0.042275]
[1773448545769,0.042269,70962.0,70951.0,0.042275]
[1773448546076,0.41964432,70968.0,70950.0,0.07478983]
[1773448546275,0.042268,70964.0,70952.0,0.042275]
[1773448547082,0.00336,70959.0,70952.0,0.042275]
[1773448548079,0.042268,70964.0,70952.0,0.042275]
[1773448549571,0.00336,70962.0,70952.0,0.042275]
[1773448550083,0.00336,70962.0,70954.0,0.042274]
[1773448550577,0.042268,70965.0,70954.0,0.042274]
[1773448550767,0.09449728,70967.0,70950.0,0.0014]
[1773448550969,0.042267,70966.0,70954.0,0.042274]
[1773448551573,0.042267,70966.0,70955.0,0.042273]
[1773448551973,0.00336,70965.0,70955.0,0.042273]
[1773448552779,0.042263,70974.0,70962.0,0.042269]
[1773448553981,0.042263,70973.0,70962.0,0.042269]
[1773448554283,0.042264,70972.0,70960.0,0.04367]
[1773448557182,0.045624,70972.0,70960.0,0.04367]
[1773448558287,0.042264,70972.0,70960.0,0.04367]
[1773448562087,0.045624,70972.0,70960.0,0.04367]
[1773448562392,0.045624,70972.0,70961.0,0.04227]
[1773448563182,0.042264,70972.0,70961.0,0.04227]
[1773448570883,0.0014,70977.0,70966.0,0.042266]
[1773448571179,0.05137492,70977.0,70966.0,0.042266]
[1773448571381,0.042262,70975.0,70963.0,0.042268]
[1773448571586,0.042262,70975.0,70964.0,0.042268]
[1773448571781,0.04997492,70976.0,70964.0,0.042268]
[1773448572087,0.09223592,70976.0,70964.0,0.042268]
[1773448573581,0.09223592,70976.0,70965.0,0.042267]
[1773448574191,0.042261,70976.0,70965.0,0.042267]
[1773448578682,0.042261,70976.0,70966.0,0.042267]
[1773448579597,0.15316543,70979.0,70966.0,0.042267]
[1773448579598,0.04226,70978.0,70966.0,0.042267]
[1773448579895,0.042261,70977.0,70966.0,0.042267]
[1773448580690,0.042261,70977.0,70966.0,0.043667]
[1773448582799,0.05067933,70981.0,70966.0,0.0014]
[1773448583190,0.042259,70980.0,70966.0,0.0014]
[1773448583391,0.05067933,70981.0,70966.0,0.0014]
[1773448583593,0.042259,70980.0,70968.0,0.042266]
[1773448583994,0.042259,70979.0,70968.0,0.042266]
[1773448585399,0.042259,70979.0,70951.0,0.00427]
[1773448585400,0.042263,70974.0,70963.0,0.042268]
[1773448585709,0.04731799,70973.0,70964.0,0.042268]
[1773448588007,0.04226,70978.0,70963.0,0.0014]
[1773448588910,0.08957799,70978.0,70963.0,0.0014]
[1773448589203,0.08957799,70978.0,70966.0,0.042266]
[1773448590007,0.04226,70978.0,70966.0,0.042266]
[1773448591507,0.042259,70980.0,70968.0,0.042265]
[1773448593106,0.04226,70979.0,70968.0,0.042265]
[1773448595607,0.00070441,70981.0,70968.0,0.042265]
[1773448597010,0.042259,70980.0,70968.0,0.042265]
[1773448603616,0.042259,70980.0,70969.0,0.042265]
[1773448605120,0.042259,70980.0,70970.0,0.0014]
[1773448606218,0.04226,70979.0,70970.0,0.0014]
[1773448608424,0.04226,70979.0,70961.0,0.04945416]
[1773448608425,0.04955924,70972.0,70962.0,0.0014]
[1773448608616,0.04955924,70972.0,70962.0,0.04237336]
[1773448609627,0.04955924,70972.0,70963.0,0.042268]
[1773448609821,0.042262,70975.0,70963.0,0.042268]
[1773448610319,0.042264,70972.0,70960.0,0.04227]
[1773448610521,0.04955924,70971.0,70960.0,0.04227]